bitfinex/quotes_ETHUSD_20250414
["timestamp","ask_amount","ask_price","bid_price","bid_amount"]
[1744615147486,5.70371,1621.8,1621.4,9.86788]
[1744615147816,14.82590582,1622.1,1621.5,1.42656161]
[1744615147979,4.96186582,1622.1,1621.7,4.93309]
[1744615148179,0.4058297,1622.2,1621.9,4.93233]
[1744615148381,4.9322,1622.0,1621.6,4.93325]
[1744615148613,5.7514,1622.0,1621.6,4.93325]
[1744615148786,5.7514,1622.0,1621.7,0.06165629]
[1744615149000,0.8192,1622.0,1621.7,4.99470629]
[1744615149207,5.75165,1622.0,1621.7,0.99280763]
[1744615149523,0.8192,1622.0,1621.7,9.92760629]
[1744615149705,1.2154297,1622.2,1621.9,4.93248]
[1744615149912,4.93218,1622.0,1621.6,4.93334]
[1744615150090,4.93209,1622.1,1621.6,4.93334]
[1744615150423,4.93209,1622.1,1621.7,5.426234]
[1744615150625,4.93209,1622.1,1621.4,0.986788]
[1744615150626,0.8324,1622.1,1621.4,0.986788]
[1744615150786,4.9334,1621.6,1621.2,9.86903]
[1744615151617,4.9334,1621.6,1621.2,4.93443]
[1744615152033,4.9337,1621.5,1621.1,8.6934]
[1744615152396,4.9337,1621.5,1621.0,12.78092]
[1744615152596,4.93403,1621.4,1621.0,12.78092]
[1744615152832,0.8324,1621.7,1621.0,7.846]
[1744615152833,0.758,1621.3,1621.0,7.846]
[1744615153141,4.93563,1620.9,1620.6,0.987309]
[1744615153311,0.758,1621.0,1620.8,4.93571]
[1744615153631,4.93504,1621.1,1620.7,4.99772373]
[1744615153925,0.8098,1621.2,1620.7,4.99766373]
[1744615154096,0.8098,1621.2,1620.8,0.49976637]
[1744615154097,4.93492,1621.1,1620.8,0.49976637]
[1744615154293,0.8098,1621.2,1620.9,4.99695576]
[1744615154891,5.7445,1621.2,1620.9,0.06168576]
[1744615155306,0.8098,1621.2,1620.9,4.9355]
[1744615155707,0.8098,1621.2,1620.9,4.93539]
[1744615155909,0.8098,1621.2,1620.9,5.97248564]
[1744615156110,5.74443,1621.2,1620.9,1.03709564]
[1744615156296,0.8098,1621.2,1620.9,1.03709564]
[1744615156722,5.74444,1621.2,1620.8,4.93567]
[1744615156895,4.93492,1621.1,1620.7,4.9361]
[1744615157101,0.8098,1621.2,1620.5,5.72515]
[1744615157102,4.93571,1620.9,1620.5,5.72515]
[1744615157327,4.93571,1620.9,1620.5,5.72505]
[1744615157897,4.93571,1620.9,1620.6,4.93642]
[1744615158225,4.93523,1621.0,1620.7,0.493642]
[1744615158432,9.87065,1621.0,1620.7,0.493642]
[1744615158993,4.93557,1620.9,1620.7,0.493642]
[1744615159193,0.8098,1621.2,1620.5,0.7885]
[1744615159194,4.93608,1620.8,1620.5,0.7885]
[1744615159398,4.93632,1620.7,1620.3,13.53943]
[1744615159620,4.93632,1620.7,1620.3,17.71932]
[1744615160498,4.93632,1620.7,1620.3,12.78213]
[1744615161340,0.7823,1620.8,1620.3,7.845]
[1744615161531,4.93735,1620.3,1620.2,2.52319605]
[1744615161837,4.93646,1620.6,1620.2,7.46068605]
[1744615162001,4.93683,1620.5,1620.3,0.7460686]
[1744615162197,4.93648,1620.6,1620.2,2.52319605]
[1744615162437,4.93648,1620.6,1620.2,12.39824605]
[1744615162947,9.87313,1620.6,1620.2,7.46069605]
[1744615163229,4.93674,1620.5,1620.2,7.46069605]
[1744615163600,4.93648,1620.6,1620.2,12.39817605]
[1744615163813,4.93648,1620.6,1620.3,6.17715761]
[1744615164009,5.76527,1620.7,1620.3,6.17715761]
[1744615164211,4.16536582,1620.8,1620.4,4.99859403]
[1744615164413,13.53918,1620.9,1620.5,4.9366]
[1744615164637,13.53918,1620.9,1620.6,0.55535786]
[1744615165111,4.93598,1620.8,1620.6,0.49366]
[1744615165315,4.93598,1620.8,1620.3,2.01321761]
[1744615165316,4.93669,1620.6,1620.3,2.01321761]
[1744615165515,4.93691,1620.5,1620.3,1.23981761]
[1744615165838,4.93622,1620.7,1620.3,4.99893926]
[1744615166025,4.93622,1620.7,1620.3,4.93723]
[1744615166219,4.93672,1620.6,1620.2,9.87512]
[1744615166534,4.93672,1620.6,1620.2,4.93751]
[1744615166535,9.87334,1620.6,1620.2,4.93751]
[1744615166854,5.72594,1620.5,1620.1,4.93794]
[1744615167059,10.66294,1620.5,1620.2,0.06170375]
[1744615167771,4.93715,1620.4,1620.2,0.06170375]
[1744615167956,4.93807,1620.1,1619.9,7.847]
[1744615168112,4.93807,1620.1,1619.7,10.66081]
[1744615168308,4.93738,1620.3,1619.9,4.93846]
[1744615168612,9.87561,1620.2,1619.8,6.004921]
[1744615168828,9.87562,1620.2,1619.8,6.004831]
[1744615169025,4.93801,1620.1,1619.9,0.06172247]
[1744615169257,4.9375,1620.3,1619.9,0.06172247]
[1744615169422,4.9375,1620.3,1619.9,0.66838782]
[1744615169613,4.9375,1620.3,1619.9,5.60685782]
[1744615170024,9.87504,1620.3,1619.9,5.60685782]
[1744615170845,4.93767,1620.2,1619.9,0.60666535]
[1744615171840,9.87553,1620.2,1619.9,0.60666535]
[1744615172554,4.93767,1620.2,1619.9,0.66838788]
[1744615172841,4.93767,1620.2,1619.9,5.60693788]
[1744615173009,4.93767,1620.2,1619.9,5.60685788]
[1744615173010,5.74948,1620.2,1619.9,5.60685788]
[1744615173212,5.7497,1620.2,1619.9,0.60666535]
[1744615173611,4.93798,1620.1,1619.9,0.60666535]
[1744615173980,9.87624,1620.1,1619.9,0.60666535]
[1744615174259,4.93813,1620.1,1619.8,0.06173163]
[1744615174465,4.93747,1620.3,1619.9,4.93845]
[1744615174611,7.93647,1620.6,1620.2,4.93766]
[1744615174612,9.87312,1620.6,1620.2,4.93766]
[1744615174811,4.93647,1620.6,1620.2,4.93766]
[1744615175059,4.16536582,1620.8,1620.5,4.93674]
[1744615175259,4.16536582,1620.8,1620.3,10.68554]
[1744615175260,4.93624,1620.7,1620.3,10.68554]
[1744615175466,9.10132582,1620.8,1620.4,6.06702729]
[1744615175671,9.10132582,1620.8,1620.0,5.03563046]
[1744615175672,4.93613,1620.7,1620.0,5.03563046]
[1744615175871,0.7864,1620.6,1620.2,4.93749]
[1744615176035,5.72313,1620.6,1620.2,4.93749]
[1744615176227,0.7864,1620.6,1620.1,4.99964467]
[1744615176443,5.72287,1620.6,1620.1,5.92772364]
[1744615176643,4.93688,1620.5,1620.1,5.86600897]
[1744615176859,4.93688,1620.5,1620.2,4.93759]
[1744615177067,4.93688,1620.5,1620.1,5.86589897]
[1744615177372,9.87381,1620.5,1620.1,5.92761221]
[1744615177577,9.87381,1620.5,1620.1,5.86589897]
[1744615177860,4.93761,1620.3,1620.0,0.493845]
[1744615178026,4.93776,1620.2,1620.0,0.493845]
[1744615178232,4.93761,1620.3,1620.0,0.55556594]
[1744615178555,4.93708,1620.4,1620.1,4.93789]
[1744615178734,4.93708,1620.4,1620.0,10.43192594]
[1744615178929,4.93708,1620.4,1620.0,5.49367594]
[1744615179136,5.73427,1620.3,1620.0,0.493845]
[1744615179546,10.67181,1620.3,1620.0,0.493845]
[1744615180147,5.73424,1620.3,1620.0,0.493845]
[1744615180744,5.73415,1620.3,1619.9,9.87681]
[1744615180973,0.7967,1620.3,1620.0,0.06172201]
[1744615181136,0.7967,1620.3,1620.0,4.99988201]
[1744615181638,0.7967,1620.3,1620.0,4.99981201]
[1744615181971,0.7967,1620.3,1620.0,4.93809]
[1744615182848,5.73418,1620.3,1620.0,0.987665]
[1744615183047,0.7967,1620.3,1619.8,4.93877]
[1744615183248,4.93827,1620.0,1619.6,10.65133]
[1744615183546,4.93799,1620.1,1619.6,3.7727]
[1744615183748,0.7967,1620.3,1620.0,4.93807]
[1744615183967,0.7967,1620.3,1620.0,9.8762]
[1744615184271,5.73424,1620.3,1620.0,0.99379201]
[1744615184570,5.73424,1620.3,1619.9,4.93853]
[1744615184737,5.73424,1620.3,1619.9,5.00025204]
[1744615184938,4.93777,1620.2,1619.8,4.93884]
[1744615185138,4.93777,1620.2,1619.8,9.93927204]
[1744615185360,4.93777,1620.2,1619.8,9.87747]
[1744615185578,9.8756,1620.2,1619.9,0.987747]
[1744615185761,9.8756,1620.2,1619.8,4.93871]
[1744615185962,4.93804,1620.1,1619.8,4.93871]
[1744615186163,9.87562,1620.2,1619.8,5.00043738]
[1744615186476,4.93777,1620.2,1619.8,9.93919738]
[1744615186640,4.93777,1620.2,1619.9,4.93852]
[1744615186835,0.7967,1620.3,1620.0,4.93814]
[1744615187041,4.16536582,1620.5,1620.1,4.9377]
[1744615187042,9.88593582,1620.5,1620.1,4.9377]
[1744615187243,4.93754,1620.3,1619.9,10.87085574]
[1744615187941,9.87512,1620.3,1619.9,5.93232574]
[1744615188138,4.93768,1620.2,1619.9,5.99404817]
[1744615188338,4.93768,1620.2,1620.0,0.59940482]
[1744615188587,9.87554,1620.2,1619.9,0.99389574]
[1744615188786,4.93799,1620.1,1619.8,4.93883]
[1744615189112,9.88590582,1620.5,1619.9,4.93842]
[1744615189113,9.87484,1620.3,1619.9,4.93842]
[1744615189241,0.7766,1620.1,1619.8,4.93871]
[1744615189442,5.71458,1620.1,1619.8,5.0004343]
[1744615189672,0.7766,1620.1,1619.8,5.0004343]
[1744615189846,4.9378,1620.2,1619.9,0.50004343]
[1744615190462,4.9378,1620.2,1619.9,5.43851343]
[1744615190662,4.93813,1620.1,1619.7,4.93909]
[1744615190896,4.93859,1619.9,1619.6,5.71217]
[1744615191583,0.7991,1619.9,1619.6,9.94053312]
[1744615191779,0.7991,1619.9,1619.7,4.93915]
[1744615191982,0.7991,1619.9,1619.6,5.00106236]
[1744615192181,0.7991,1619.9,1619.6,6.7684436]
[1744615192803,4.939,1619.8,1619.5,7.733]
[1744615193104,9.87817,1619.8,1619.4,5.72376]
[1744615193276,9.87817,1619.8,1619.4,4.94006]
[1744615193478,4.939,1619.8,1619.4,4.94006]
[1744615193674,9.87805,1619.8,1619.4,4.94006]
[1744615193980,9.87805,1619.8,1619.4,5.928105]
[1744615194305,5.70317,1619.5,1619.1,12.72484]
[1744615194481,0.7632,1619.5,1619.1,12.72484]
[1744615194673,0.7632,1619.7,1619.5,4.93975]
[1744615194898,12.67391,1619.8,1619.6,4.93949]
[1744615194899,7.735,1619.8,1619.6,4.93949]
[1744615195108,0.7587,1619.9,1619.4,5.70293]
[1744615195311,0.7587,1619.9,1619.6,4.9393]
[1744615195680,4.16536582,1620.0,1619.7,4.93908]
[1744615195885,4.16536582,1620.0,1619.6,4.93944]
[1744615195886,9.10378582,1620.0,1619.6,4.93944]
[1744615196568,9.10378582,1620.0,1619.6,4.93933]
[1744615197066,9.10378582,1620.0,1619.6,9.87866]
[1744615197267,9.10378582,1620.0,1619.7,0.987866]
[1744615198406,4.16536582,1620.0,1619.5,5.510043]
[1744615198896,4.93872,1619.9,1619.5,5.510043]
[1744615199292,4.93904,1619.8,1619.5,0.570293]
[1744615199492,0.79,1619.7,1619.2,0.772]
[1744615199803,5.72868,1619.9,1619.5,9.87934]
[1744615200015,10.66747,1619.9,1619.5,4.93964]
[1744615200184,4.93899,1619.8,1619.5,4.93964]
[1744615200383,4.93899,1619.8,1619.5,5.92761]
[1744615200774,5.72868,1619.9,1619.5,5.92761]
[1744615200996,10.66746,1619.9,1619.5,4.93964]
[1744615201206,5.72868,1619.9,1619.5,4.93964]
[1744615201394,4.16536582,1620.0,1619.9,4.93857]
[1744615201581,4.93678,1620.5,1619.6,5.0011446]
[1744615201582,5.72878,1620.4,1619.7,3.83456817]
[1744615201786,5.72878,1620.4,1620.0,4.93814]
[1744615202112,5.72878,1620.4,1620.0,9.87628]
[1744615202296,5.72878,1620.4,1620.1,4.93784]
[1744615202608,5.72878,1620.4,1619.9,5.70054]
[1744615202609,0.7917,1620.4,1619.9,5.70054]
[1744615202795,9.87513,1620.3,1619.9,5.70054]
[1744615202994,4.9375,1620.3,1619.9,6.80269468]
[1744615203198,4.9375,1620.3,1620.0,4.93827]
[1744615203584,9.87507,1620.3,1619.9,6.80269468]
[1744615203787,4.9375,1620.3,1620.0,4.9382]
[1744615203996,4.9375,1620.3,1619.9,6.80269468]
[1744615204198,4.9375,1620.3,1619.9,11.74110468]
[1744615204508,4.93841,1620.0,1619.6,0.7826]
[1744615204698,4.93841,1620.0,1619.7,5.00090019]
[1744615204887,5.69987,1620.1,1619.7,5.00090019]
[1744615205088,4.9385,1620.0,1619.6,4.93933]
[1744615205285,0.8102,1619.8,1619.1,0.846]
[1744615205489,3.8102,1619.6,1619.1,0.05]
[1744615205811,5.74671,1619.2,1619.1,0.05]
[1744615206283,12.91207582,1619.2,1619.1,0.05]
[1744615207707,3.8047,1618.9,1618.2,14.96704989]
[1744615207912,4.94317,1618.4,1618.2,10.02331989]
[1744615208115,0.8047,1618.8,1618.6,4.94253]
[1744615208281,4.16536582,1618.9,1618.6,5.00430612]
[1744615208611,4.94144,1619.0,1618.7,4.94215]
[1744615208612,0.7726,1619.0,1618.7,4.94215]
[1744615208812,0.7726,1619.0,1618.7,5.00392291]
[1744615209013,5.71421,1619.0,1618.5,9.88553]
[1744615209203,0.7726,1619.0,1618.6,5.00418313]
[1744615209513,5.69687,1619.2,1618.8,4.94176]
[1744615209729,5.69611,1619.4,1618.9,4.94162]
[1744615209909,5.69611,1619.4,1618.8,0.788]
[1744615209910,4.94057,1619.3,1618.8,5.72991]
[1744615210119,4.94087,1619.2,1618.8,5.72991]
[1744615210415,4.94057,1619.3,1618.9,0.06176272]
[1744615210609,5.69612,1619.4,1618.9,4.9414]
[1744615211024,9.88105,1619.3,1618.8,6.797123]
[1744615211177,4.94082,1619.2,1618.8,6.797123]
[1744615211376,4.94082,1619.2,1618.7,12.4432]
[1744615211578,4.94121,1619.1,1618.6,5.69611]
[1744615211796,9.88305,1619.0,1618.6,5.69611]
[1744615212109,4.94103,1619.1,1618.7,4.94223]
[1744615212298,17.43690582,1619.3,1618.8,4.94179]
[1744615212620,12.49636582,1619.3,1618.9,4.94147]
[1744615212864,5.75426,1619.6,1619.2,4.9407]
[1744615213115,10.69398,1619.6,1619.2,4.9407]
[1744615213281,0.8147,1619.6,1619.3,4.94027]
[1744615213480,9.10455582,1619.7,1619.3,4.94027]
[1744615213481,4.16536582,1619.7,1619.3,0.06175134]
[1744615213682,4.11009668,1619.9,1619.6,4.93937]
[1744615213882,4.11009668,1619.9,1619.8,4.93888]
[1744615214118,14.0111525,1620.2,1619.8,4.93888]
[1744615214339,4.90809668,1620.2,1619.9,4.9384]
[1744615214483,4.11009668,1620.2,1620.0,4.99987315]
[1744615214684,4.11009668,1620.2,1620.0,4.93815]
[1744615214925,4.11009668,1620.2,1619.9,9.87693]
[1744615215129,4.11009668,1620.2,1620.1,4.93796]
[1744615215618,4.11009668,1620.2,1619.9,4.93852]
[1744615215996,4.11009668,1620.2,1619.7,4.10946817]
[1744615215997,9.04791668,1620.2,1619.7,0.8249]
[1744615216325,0.7629,1620.0,1619.2,13.20915]
[1744615216526,4.93964,1619.6,1619.2,13.20915]
[1744615216824,5.70181,1619.8,1619.3,5.00203573]
[1744615217003,5.70181,1619.8,1619.4,4.93992]
[1744615217204,0.570181,1619.7,1619.3,4.94029]
[1744615217416,5.509551,1619.7,1619.3,9.94222533]
[1744615217600,5.509551,1619.7,1619.3,5.00193533]
[1744615217801,5.509551,1619.7,1619.1,4.94073]
[1744615217802,4.93949,1619.6,1619.1,4.94073]
[1744615218149,5.509361,1619.7,1619.2,0.0617511]
[1744615218448,0.7629,1619.8,1619.3,4.9404]
[1744615218449,0.5509361,1619.6,1619.3,4.9404]
[1744615218608,4.9392,1619.7,1619.3,9.8806]
[1744615218793,4.9392,1619.7,1619.4,0.06174343]
[1744615218996,5.7018,1619.8,1619.4,0.06174343]
[1744615219213,5.7018,1619.8,1619.3,4.9402]
[1744615219214,4.93937,1619.7,1619.3,4.9402]
[1744615219439,4.93937,1619.7,1619.3,4.94039]
[1744615219802,4.93937,1619.7,1619.3,4.94024]
[1744615220095,0.7629,1619.8,1619.5,4.93965]
[1744615220317,5.7018,1619.8,1619.4,4.9401]
[1744615221638,5.7018,1619.8,1619.5,4.93979]
[1744615221930,5.70179,1619.8,1619.4,4.94008]
[1744615222637,0.7887,1619.4,1619.0,4.94126]
[1744615222834,4.93982,1619.5,1619.1,4.9409]
[1744615223218,4.94086,1619.2,1618.9,0.7717]
[1744615223434,4.94102,1619.1,1618.8,12.44291]
[1744615223636,9.88224,1619.1,1618.8,7.501]
[1744615223947,4.94152,1619.0,1618.7,5.75533]
[1744615224508,4.94101,1619.1,1618.7,5.75533]
[1744615224708,8.72267,1619.4,1619.0,4.9413]
[1744615224905,8.72267,1619.4,1619.1,5.00253024]
[1744615224906,0.7823,1619.4,1619.1,5.00253024]
[1744615225209,0.7823,1619.4,1618.7,1.882871]
[1744615225412,4.94226,1618.7,1618.3,5.74399]
[1744615225612,4.94175,1618.9,1618.5,4.94283]
[1744615225817,4.94175,1618.9,1618.6,0.06177559]
[1744615226345,5.73423,1619.0,1618.6,5.00415559]
[1744615226672,10.67577,1619.0,1618.6,4.94238]
[1744615226848,5.73423,1619.0,1618.7,0.06177179]
[1744615227144,10.67575,1619.0,1618.6,5.00415061]
[1744615227444,0.7929,1619.0,1618.7,5.00400181]
[1744615227748,5.73437,1619.0,1618.6,4.94246]
[1744615227941,4.94167,1618.9,1618.4,9.88608]
[1744615228143,4.94231,1618.7,1618.3,13.24607]
[1744615228343,9.10699582,1618.9,1618.5,4.94282]
[1744615228646,4.9421,1618.8,1618.4,4.943]
[1744615228842,3.7555,1618.8,1618.1,3.40158682]
[1744615229049,4.94301,1618.5,1618.1,7.52010682]
[1744615229220,4.94301,1618.5,1618.1,7.51995682]
[1744615229426,4.94301,1618.5,1618.1,2.57608682]
[1744615229626,4.94284,1618.6,1618.2,0.06179018]
[1744615230143,4.94326,1618.4,1618.1,2.57608682]
[1744615230345,4.94305,1618.5,1618.1,2.57608682]
[1744615230856,5.75794,1618.3,1618.1,2.57608682]
[1744615231060,4.94316,1618.4,1618.1,2.57608682]
[1744615232234,9.88651,1618.4,1618.1,2.57608682]
[1744615232731,4.94346,1618.3,1618.1,2.57608682]
[1744615233829,4.94376,1618.2,1618.1,2.57608682]
[1744615234083,5.77296,1618.2,1618.1,0.05]
[1744615236458,4.94603,1617.5,1617.3,0.8216]
[1744615236768,0.7861,1617.7,1617.3,0.8216]
[1744615236769,4.94561,1617.6,1617.3,0.8216]
[1744615236973,12.39593,1617.9,1617.3,6.34494]
[1744615236974,9.89028,1617.8,1617.3,6.34494]
[1744615237305,4.94597,1617.5,1617.1,4.99712]
[1744615237458,9.89169,1617.6,1617.2,0.7587]
[1744615237782,4.94604,1617.5,1617.2,0.7587]
[1744615237936,4.94562,1617.6,1617.2,0.7587]
[1744615238137,4.94622,1617.4,1617.2,0.7587]
[1744615238574,4.94682,1617.2,1617.1,0.05]
[1744615238959,12.11218582,1617.2,1617.1,0.05]
[1744615239341,12.88068582,1617.2,1617.1,0.05]
[1744615239743,4.16536582,1617.2,1617.1,0.05]
[1744615240980,4.16536582,1617.2,1617.1,4.99712]
[1744615241273,4.16536582,1617.2,1617.1,0.05]
[1744615242550,9.11218582,1617.2,1617.1,0.05]
[1744615242759,9.90898582,1617.2,1617.1,0.05]
[1744615243076,12.90898582,1617.2,1617.1,0.05]
[1744615243792,4.16536582,1617.2,1617.1,0.05]
[1744615244287,4.94654,1617.3,1617.1,0.05]
[1744615244494,4.94682,1617.2,1617.1,0.05]
[1744615246324,12.91038582,1617.2,1617.1,0.05]
[1744615246491,13.46038582,1617.2,1617.1,0.05]
[1744615246695,4.94896,1616.5,1616.1,0.8138]
[1744615246932,0.7982,1616.6,1616.1,0.8138]
[1744615247082,4.94846,1616.7,1616.3,4.94941]
[1744615247284,9.89705,1616.7,1616.3,4.94941]
[1744615247584,8.2172,1616.8,1616.5,4.94881]
[1744615247585,7.455,1616.8,1616.5,4.94881]
[1744615247800,7.455,1616.8,1616.6,4.94847]
[1744615248006,9.11290582,1617.0,1616.6,4.94847]
[1744615248204,4.16536582,1617.0,1616.8,4.94801]
[1744615248409,16.56821582,1617.2,1616.8,4.94788]
[1744615248731,16.56821582,1617.2,1617.1,4.94712]
[1744615248732,11.62136582,1617.2,1617.1,4.94712]
[1744615248884,0.8013,1617.5,1617.1,5.936558]
[1744615249085,0.8013,1617.7,1617.1,4.94712]
[1744615249304,4.94665,1617.3,1616.9,5.73512]
[1744615249509,4.94632,1617.4,1617.0,4.94742]
[1744615249746,4.94593,1617.5,1617.1,4.94689]
[1744615249909,9.89205,1617.5,1617.1,4.94689]
[1744615250109,4.94593,1617.5,1617.1,4.94689]
[1744615250311,4.94593,1617.5,1617.1,5.936318]
[1744615250553,4.94593,1617.5,1617.1,10.883278]
[1744615251254,9.8914,1617.6,1617.2,4.94664]
[1744615251608,4.9459,1617.5,1617.2,4.94664]
[1744615252044,8.74663,1617.7,1617.3,5.76778]
[1744615252260,13.69215,1617.7,1617.3,5.76778]
[1744615252457,7.94533,1617.7,1617.3,10.71416]
[1744615252611,4.16536582,1617.9,1617.7,4.94508]
[1744615252814,4.9447,1617.9,1617.7,0.8323]
[1744615253116,4.9447,1617.9,1617.5,5.76727]
[1744615253453,9.88964,1617.9,1617.5,4.94587]
[1744615253611,4.94438,1618.0,1617.6,4.94547]
[1744615253814,7.457,1618.1,1617.7,5.76147478]
[1744615254013,12.40118,1618.1,1617.8,4.94497]
[1744615254215,12.40118,1618.1,1617.7,5.6995]
[1744615254425,4.94438,1618.0,1617.7,5.6995]
[1744615254630,4.94438,1618.0,1617.7,6.26945]
[1744615254829,7.457,1618.1,1617.8,4.9447]
[1744615255060,5.70553,1618.2,1617.8,9.88968]
[1744615255260,9.92111582,1618.4,1618.0,4.94437]
[1744615255412,12.39984,1618.5,1618.1,4.94393]
[1744615255617,4.94361,1618.3,1617.9,4.94467]
[1744615255952,7.94342,1618.4,1618.0,4.94421]
[1744615256160,4.94342,1618.4,1618.0,9.8884]
[1744615256313,12.39987,1618.5,1618.1,4.94396]
[1744615256515,12.39987,1618.5,1618.1,10.65053]
[1744615257041,12.39987,1618.5,1618.1,5.70657]
[1744615257219,7.457,1618.5,1617.8,3.0]
[1744615257413,12.39985,1618.5,1618.1,4.94384]
[1744615257755,12.40005,1618.5,1618.0,4.94434]
[1744615258055,4.94326,1618.4,1618.0,9.88853]
[1744615258256,4.94326,1618.4,1618.0,4.94419]
[1744615258427,4.94326,1618.4,1618.1,4.94406]
[1744615258627,17.34314,1618.5,1618.1,4.94406]
[1744615258961,4.94315,1618.4,1618.0,4.94433]
[1744615259107,4.94315,1618.4,1618.0,4.94418]
[1744615259313,4.94315,1618.4,1618.0,9.88839]
[1744615259513,4.94315,1618.4,1618.0,4.94418]
[1744615259826,4.11009668,1619.0,1618.6,4.94241]
[1744615260040,4.94164,1618.9,1618.5,5.76495]
[1744615260360,4.94236,1618.7,1618.3,10.66531]
[1744615260714,4.94173,1618.9,1618.3,0.7786]
[1744615260913,13.15002,1619.1,1618.4,4.94315]
[1744615261112,0.821,1619.1,1618.7,4.94223]
[1744615261416,4.16536582,1619.2,1618.7,4.9422]
[1744615261615,4.94113,1619.1,1618.7,4.9422]
[1744615261910,4.16536582,1619.2,1618.8,4.94163]
[1744615262154,9.10635582,1619.2,1618.8,4.9419]
[1744615262360,4.16536582,1619.2,1618.7,4.94221]
[1744615262556,5.35779658,1619.1,1618.7,4.94221]
[1744615262951,0.41653658,1619.1,1618.7,5.00399975]
[1744615263123,4.94074,1619.2,1618.8,4.94172]
[1744615263327,8.2168,1619.4,1619.3,4.9404]
[1744615263328,0.05,1619.4,1619.3,4.9404]
[1744615263643,0.05,1619.4,1619.3,5.7491]
[1744615264446,0.05,1619.4,1619.3,6.2991]
[1744615264647,0.05,1619.4,1619.3,17.18967353]
[1744615264885,0.05,1619.4,1619.3,19.3409617]
[1744615265187,0.05,1619.4,1619.3,22.3409617]
[1744615266184,4.93816,1620.1,1619.4,3.7917]
[1744615266364,4.93828,1620.0,1619.6,4.9394]
[1744615266557,5.74136,1620.1,1619.7,4.93914]
[1744615266875,4.93832,1620.0,1619.6,4.93935]
[1744615267077,5.74136,1620.1,1619.7,4.93901]
[1744615267577,10.67955,1620.1,1619.7,4.93899]
[1744615267879,4.93844,1620.0,1619.6,4.93946]
[1744615268078,4.93844,1620.0,1619.6,9.87874]
[1744615268663,4.93844,1620.0,1619.6,4.93928]
[1744615269184,4.9389,1619.8,1619.4,0.7917]
[1744615269387,4.93929,1619.7,1619.3,9.88058]
[1744615269889,4.9389,1619.8,1619.4,4.94008]
[1744615270185,9.87804,1619.8,1619.4,4.94008]
[1744615270956,4.9389,1619.8,1619.4,4.94008]
[1744615271394,4.93857,1619.9,1619.2,4.94065]
[1744615271598,4.9399,1619.5,1619.1,10.64919]
[1744615271756,4.9399,1619.5,1619.1,5.70818]
[1744615271954,4.93966,1619.6,1619.0,7.383]
[1744615271955,7.93949,1619.6,1619.0,7.383]
[1744615272160,4.94091,1619.2,1618.8,4.9419]
[1744615272469,4.9404,1619.3,1618.9,4.94142]
[1744615273289,7.382,1619.4,1618.7,5.70949]
[1744615273494,4.94138,1619.0,1618.6,17.26685]
[1744615273653,4.94138,1619.0,1618.6,4.94235]
[1744615273858,5.74014,1618.9,1618.5,9.88548]
[1744615274058,5.74014,1618.9,1618.5,10.874028]
[1744615274601,5.74014,1618.9,1618.5,5.931238]
[1744615274888,5.74014,1618.9,1618.5,10.873908]
[1744615275053,0.7984,1618.9,1618.6,4.94249]
[1744615275458,0.7984,1618.9,1618.4,4.94313]
[1744615275799,4.9426,1618.6,1618.2,9.88727]
[1744615276002,4.94244,1618.7,1618.3,4.94345]
[1744615276775,0.7984,1618.9,1618.6,4.94232]
[1744615276978,0.7984,1618.9,1618.7,4.94223]
[1744615277293,0.7984,1618.9,1618.6,4.94232]
[1744615277693,0.7984,1618.9,1618.7,4.94214]
[1744615278978,0.7984,1618.9,1618.6,5.930834]
[1744615279383,4.94223,1618.7,1618.2,4.94371]
[1744615279576,4.94196,1618.8,1618.4,4.94303]
[1744615279773,4.94196,1618.8,1618.4,4.94301]
[1744615280100,8.1814,1618.9,1618.6,4.94243]
[1744615280299,8.1814,1618.9,1618.6,9.88479]
[1744615280517,0.7984,1618.9,1618.6,4.94236]
[1744615280713,0.7984,1618.9,1618.6,9.88478]
[1744615281002,9.90221582,1619.3,1618.9,4.94149]
[1744615281181,9.90229582,1619.3,1618.9,4.94149]
[1744615281583,4.96176582,1619.3,1618.9,0.7801]
[1744615281801,0.7939,1620.0,1619.5,4.93961]
[1744615282000,5.73244,1620.0,1619.6,4.93936]
[1744615282214,0.7939,1620.0,1619.6,4.93936]
[1744615282383,5.73217,1620.0,1619.6,4.93936]
[1744615282703,4.93877,1619.9,1619.5,5.73255]
[1744615283075,7.93928,1619.7,1618.9,0.7651]
[1744615283286,4.94043,1619.3,1618.8,4.94174]
[1744615283486,3.0,1619.4,1619.1,4.9409]
[1744615283690,4.93981,1619.5,1619.1,4.9409]
[1744615283901,3.0,1619.5,1619.0,0.06175873]
[1744615284105,4.94043,1619.3,1618.9,4.94151]
[1744615284314,4.94043,1619.3,1618.9,9.88293]
[1744615284510,4.94043,1619.3,1618.8,0.570684]
[1744615284511,4.94103,1619.1,1618.8,0.570684]
[1744615284823,4.94076,1619.2,1618.8,9.88363]
[1744615284976,4.94066,1619.3,1618.9,4.94155]
[1744615285181,4.94066,1619.3,1618.9,9.88306]
[1744615285382,4.94075,1619.2,1618.8,4.94188]
[1744615285804,3.0,1619.2,1618.9,4.94138]
[1744615285994,3.0,1619.2,1618.7,0.7651]
[1744615285995,4.94092,1619.2,1618.8,4.94191]
[1744615286182,7.94051,1619.3,1618.8,4.94175]
[1744615286384,7.94051,1619.3,1618.9,4.9416]
[1744615287006,0.8294,1619.4,1619.0,4.94113]
[1744615287207,0.8238,1619.6,1619.4,4.94006]
[1744615287395,0.8238,1619.6,1619.3,4.94039]
[1744615287593,4.16536582,1619.7,1619.3,4.94039]
[1744615287797,4.16536582,1619.7,1619.4,4.94004]
[1744615288387,9.10458582,1619.7,1619.4,4.94004]